[Event "SS Manhem Chess Week 2019 Goteborg Open"]
[Site "Molnlycke kulturhus, Biblioteksgatan 2, Molnlycke, Sweden"]
[Date "2019.08.16"]
[Round "3.9"]
[White "Andersson, Lars"]
[Black "Carlfors, Viktor"]
[Result "1-0"]
[TimeControl "15 minutes + 5 seconds per move from move one (Round 1 - 4) / 90 minutes + 30 seconds per move from move one (Round 5 - 8)"]
[WhiteFideId "1706772"]
[BlackFideId "1740725"]
[WhiteElo "2003"]
[BlackElo "1820"]

1. d4 {[%clk 00:15:09]} d5 {[%clk 00:15:09]} {[%emt 00:00:01]} 2. Bf4 {[%clk
00:15:12]} {[%emt 00:00:02]} Nf6 {[%clk 00:15:13]} {[%emt 00:00:01]} 3. e3
{[%clk 00:15:16]} {[%emt 00:00:01]} c5 {[%clk 00:15:17]} {[%emt 00:00:01]} 4.
c3 {[%clk 00:15:19]} {[%emt 00:00:03]} Nc6 {[%clk 00:15:20]} 5. Nd2 {[%clk
00:15:14]} {[%emt 00:00:09]} Bf5 {[%clk 00:15:24]} {[%emt 00:00:02]} 6. Ngf3
{[%clk 00:14:45]} {[%emt 00:00:34]} e6 {[%clk 00:15:27]} {[%emt 00:00:02]} 7.
h3 {[%clk 00:14:03]} {[%emt 00:00:47]} h6 {[%clk 00:15:31]} {[%emt 00:00:02]} 8.
g4 {[%clk 00:13:04]} {[%emt 00:01:04]} Bg6 {[%clk 00:14:47]} {[%emt 00:00:49]}
9. Bb5 {[%clk 00:12:31]} {[%emt 00:00:39]} Qb6 {[%clk 00:14:35]} {[%emt
00:00:16]} 10. Qa4 {[%clk 00:10:57]} {[%emt 00:01:40]} Nd7 {[%clk 00:14:18]}
{[%emt 00:00:22]} 11. Ne5 {[%clk 00:10:27]} {[%emt 00:00:35]} Ndxe5 {[%clk
00:14:14]} {[%emt 00:00:09]} 12. Bxe5 {[%clk 00:10:28]} {[%emt 00:00:04]} Rc8
{[%clk 00:13:55]} {[%emt 00:00:24]} 13. dxc5 {[%clk 00:08:27]} {[%emt
00:02:06]} Qxc5 {[%clk 00:13:58]} {[%emt 00:00:01]} 14. Bd4 {[%clk 00:08:18]}
{[%emt 00:00:14]} Qd6 {[%clk 00:13:41]} {[%emt 00:00:21]} 15. Qxa7 {[%clk
00:08:17]} {[%emt 00:00:07]} Qc7 {[%clk 00:13:06]} {[%emt 00:00:39]} 16. Qb6
{[%clk 00:07:42]} {[%emt 00:00:40]} Qxb6 {[%clk 00:12:42]} {[%emt 00:00:30]} 17.
Bxb6 {[%clk 00:07:46]} {[%emt 00:00:01]} Be7 {[%clk 00:12:45]} {[%emt
00:00:02]} 18. f4 {[%clk 00:06:38]} {[%emt 00:01:12]} f5 {[%clk 00:11:40]}
{[%emt 00:01:09]} 19. Nf3 {[%clk 00:06:18]} {[%emt 00:00:25]} fxg4 {[%clk
00:10:54]} {[%emt 00:00:52]} 20. hxg4 {[%clk 00:06:21]} {[%emt 00:00:02]} Be4
{[%clk 00:10:58]} {[%emt 00:00:01]} 21. O-O {[%clk 00:05:53]} {[%emt 00:00:33]}
O-O {[%clk 00:10:36]} {[%emt 00:00:27]} 22. Nd2 {[%clk 00:05:40]} {[%emt
00:00:18]} Bg6 {[%clk 00:10:27]} {[%emt 00:00:14]} 23. Rae1 {[%clk 00:05:15]}
{[%emt 00:00:31]} h5 {[%clk 00:08:05]} {[%emt 00:02:27]} 24. g5 {[%clk
00:05:00]} {[%emt 00:00:20]} e5 {[%clk 00:08:04]} {[%emt 00:00:06]} 25. Nb3
{[%clk 00:04:35]} {[%emt 00:00:29]} exf4 {[%clk 00:07:03]} {[%emt 00:01:06]} 26.
exf4 {[%clk 00:04:39]} {[%emt 00:00:01]} Bd6 {[%clk 00:07:07]} 27. Rd1 {[%clk
00:04:32]} {[%emt 00:00:12]} Be4 {[%clk 00:06:29]} {[%emt 00:00:43]} 28. Be3
{[%clk 00:04:13]} {[%emt 00:00:24]} Ne7 {[%clk 00:06:02]} {[%emt 00:00:32]} 29.
Bd7 {[%clk 00:04:04]} {[%emt 00:00:14]} Rcd8 {[%clk 00:05:39]} {[%emt
00:00:27]} 30. Be6+ {[%clk 00:04:08]} {[%emt 00:00:01]} Kh7 {[%clk 00:05:19]}
{[%emt 00:00:25]} 31. Nc5 {[%clk 00:04:12]} {[%emt 00:00:01]} b6 {[%clk
00:04:15]} {[%emt 00:01:08]} 32. Nxe4 {[%clk 00:04:14]} {[%emt 00:00:03]} dxe4
{[%clk 00:04:00]} {[%emt 00:00:20]} 33. Bxb6 {[%clk 00:04:17]} {[%emt
00:00:02]} e3 {[%clk 00:03:01]} {[%emt 00:01:04]} 34. Bxe3 {[%clk 00:03:48]}
{[%emt 00:00:34]} Nf5 {[%clk 00:02:11]} {[%emt 00:00:55]} 35. Bxf5+ {[%clk
00:03:50]} {[%emt 00:00:03]} Rxf5 {[%clk 00:02:15]} {[%emt 00:00:01]} 36. Rd3
{[%clk 00:03:42]} {[%emt 00:00:13]} Re8 {[%clk 00:01:51]} {[%emt 00:00:29]} 37.
Rxd6 {[%clk 00:03:10]} {[%emt 00:00:38]} Rxe3 {[%clk 00:01:55]} 38. Rd4 {[%clk
00:03:00]} {[%emt 00:00:14]} Re2 {[%clk 00:01:22]} {[%emt 00:00:38]} 39. Rf2
{[%clk 00:03:01]} {[%emt 00:00:03]} Re1+ {[%clk 00:01:26]} 40. Kg2 {[%clk
00:03:04]} {[%emt 00:00:04]} Rb1 {[%clk 00:01:22]} {[%emt 00:00:09]} 41. a4
{[%clk 00:02:58]} {[%emt 00:00:11]} Ra5 {[%clk 00:01:07]} {[%emt 00:00:19]} 42.
f5 {[%clk 00:02:48]} {[%emt 00:00:16]} g6 {[%clk 00:00:37]} {[%emt 00:00:35]}
43. Rd7+ {[%clk 00:02:03]} {[%emt 00:00:50]} Kg8 {[%clk 00:00:41]} 44. f6
{[%clk 00:01:55]} {[%emt 00:00:13]} Rxg5+ {[%clk 00:00:45]} {[%emt 00:00:02]}
45. Kh2 {[%clk 00:01:55]} {[%emt 00:00:06]} Rf5 {[%clk 00:00:37]} {[%emt
00:00:13]} 46. Rxf5 {[%clk 00:01:42]} {[%emt 00:00:17]} gxf5 {[%clk 00:00:41]}
47. b4 {[%clk 00:01:43]} {[%emt 00:00:04]} f4 {[%clk 00:00:29]} {[%emt
00:00:16]} 48. a5 {[%clk 00:01:39]} {[%emt 00:00:09]} Rb2+ {[%clk 00:00:25]}
{[%emt 00:00:09]} 49. Kg1 {[%clk 00:01:42]} {[%emt 00:00:02]} h4 {[%clk
00:00:23]} {[%emt 00:00:07]} 50. a6 {[%clk 00:01:43]} {[%emt 00:00:03]} Ra2
{[%clk 00:00:20]} {[%emt 00:00:08]} 51. a7 {[%clk 00:01:46]} 1-0

[Event "SS Manhem Chess Week 2019 Goteborg Open"]
[Site "Molnlycke kulturhus, Biblioteksgatan 2, Molnlycke, Sweden"]
[Date "2019.08.16"]
[Round "3.10"]
[White "Alfredsson, Daniel"]
[Black "Hector, Jonny"]
[Result "0-1"]
[TimeControl "15 minutes + 5 seconds per move from move one (Round 1 - 4) / 90 minutes + 30 seconds per move from move one (Round 5 - 8)"]
[BlackTitle "GM"]
[WhiteFideId "1742205"]
[BlackFideId "1700090"]
[WhiteElo "1692"]
[BlackElo "2493"]

1. e4 {[%clk 00:15:08]} e5 {[%clk 00:15:08]} {[%emt 00:00:02]} 2. Bc4 {[%clk
00:15:07]} {[%emt 00:00:07]} Nf6 {[%clk 00:15:03]} {[%emt 00:00:10]} 3. d3
{[%clk 00:15:09]} {[%emt 00:00:03]} c6 {[%clk 00:15:05]} {[%emt 00:00:03]} 4.
Nf3 {[%clk 00:14:40]} {[%emt 00:00:35]} d5 {[%clk 00:15:07]} {[%emt 00:00:02]}
5. exd5 {[%clk 00:14:42]} {[%emt 00:00:03]} cxd5 {[%clk 00:15:10]} {[%emt
00:00:02]} 6. Bb5+ {[%clk 00:14:44]} {[%emt 00:00:03]} Bd7 {[%clk 00:15:10]}
{[%emt 00:00:04]} 7. Bxd7+ {[%clk 00:14:12]} {[%emt 00:00:38]} Nbxd7 {[%clk
00:15:12]} {[%emt 00:00:02]} 8. O-O {[%clk 00:13:51]} {[%emt 00:00:27]} Bd6
{[%clk 00:15:07]} {[%emt 00:00:09]} 9. Bg5 {[%clk 00:13:40]} {[%emt 00:00:17]}
h6 {[%clk 00:14:56]} {[%emt 00:00:16]} 10. Bh4 {[%clk 00:13:38]} {[%emt
00:00:07]} O-O {[%clk 00:14:39]} {[%emt 00:00:20]} 11. Re1 {[%clk 00:13:12]}
{[%emt 00:00:33]} Re8 {[%clk 00:14:41]} {[%emt 00:00:03]} 12. d4 {[%clk
00:11:45]} {[%emt 00:01:33]} e4 {[%clk 00:14:40]} {[%emt 00:00:05]} 13. Nfd2
{[%clk 00:11:35]} {[%emt 00:00:15]} Qb6 {[%clk 00:14:25]} {[%emt 00:00:20]} 14.
Nb3 {[%clk 00:11:25]} {[%emt 00:00:17]} Rac8 {[%clk 00:14:09]} {[%emt
00:00:20]} 15. c3 {[%clk 00:11:13]} {[%emt 00:00:18]} Qc7 {[%clk 00:13:27]}
{[%emt 00:00:47]} 16. Bg3 {[%clk 00:11:06]} {[%emt 00:00:12]} Nf8 {[%clk
00:13:27]} {[%emt 00:00:04]} 17. Nc5 {[%clk 00:09:51]} {[%emt 00:01:20]} Bxg3
{[%clk 00:13:04]} {[%emt 00:00:28]} 18. hxg3 {[%clk 00:09:54]} {[%emt
00:00:02]} b6 {[%clk 00:13:07]} {[%emt 00:00:01]} 19. Na6 {[%clk 00:09:09]}
{[%emt 00:00:51]} Qd6 {[%clk 00:12:29]} {[%emt 00:00:43]} 20. Nd2 {[%clk
00:08:47]} {[%emt 00:00:27]} e3 {[%clk 00:12:27]} {[%emt 00:00:06]} 21. Rxe3
{[%clk 00:07:48]} {[%emt 00:01:06]} Rxe3 {[%clk 00:12:28]} {[%emt 00:00:04]} 22.
fxe3 {[%clk 00:07:51]} {[%emt 00:00:02]} Qxg3 {[%clk 00:12:10]} {[%emt
00:00:23]} 23. Qf3 {[%clk 00:07:39]} {[%emt 00:00:18]} Qg6 {[%clk 00:11:21]}
{[%emt 00:00:53]} 24. Nb4 {[%clk 00:06:41]} {[%emt 00:01:03]} Qg5 {[%clk
00:09:30]} {[%emt 00:01:55]} 25. Qf4 {[%clk 00:05:32]} {[%emt 00:01:14]} Qg6
{[%clk 00:08:16]} {[%emt 00:01:19]} 26. Qf3 {[%clk 00:04:43]} {[%emt 00:00:56]}
Ne6 {[%clk 00:08:18]} {[%emt 00:00:02]} 27. Rf1 {[%clk 00:03:38]} {[%emt
00:01:10]} Ng5 {[%clk 00:06:13]} {[%emt 00:02:10]} 28. Qf5 {[%clk 00:03:20]}
{[%emt 00:00:23]} Qxf5 {[%clk 00:06:12]} {[%emt 00:00:05]} 29. Rxf5 {[%clk
00:03:23]} {[%emt 00:00:03]} Rd8 {[%clk 00:06:16]} {[%emt 00:00:01]} 30. Nc6
{[%clk 00:02:33]} {[%emt 00:00:55]} Rd7 {[%clk 00:06:19]} {[%emt 00:00:02]} 31.
Nf3 {[%clk 00:01:52]} {[%emt 00:00:46]} Nge4 {[%clk 00:06:07]} {[%emt
00:00:16]} 32. Nfe5 {[%clk 00:01:12]} {[%emt 00:00:46]} Rc7 {[%clk 00:06:11]}
{[%emt 00:00:02]} 33. Nb4 {[%clk 00:00:41]} {[%emt 00:00:37]} g6 {[%clk
00:06:07]} {[%emt 00:00:08]} 34. Rf3 {[%clk 00:00:28]} {[%emt 00:00:17]} Kg7
{[%clk 00:06:08]} {[%emt 00:00:03]} 35. Ned3 {[%clk 00:00:16]} {[%emt
00:00:18]} a5 {[%clk 00:05:54]} {[%emt 00:00:18]} 36. Nc2 {[%clk 00:00:15]}
{[%emt 00:00:07]} Ng4 {[%clk 00:05:27]} {[%emt 00:00:31]} 0-1

[Event "SS Manhem Chess Week 2019 Goteborg Open"]
[Site "Molnlycke kulturhus, Biblioteksgatan 2, Molnlycke, Sweden"]
[Date "2019.08.16"]
[Round "3.11"]
[White "Nilsson, Joakim"]
[Black "Andersson, Kjell-Ake"]
[Result "1-0"]
[TimeControl "15 minutes + 5 seconds per move from move one (Round 1 - 4) / 90 minutes + 30 seconds per move from move one (Round 5 - 8)"]
[WhiteTitle "FM"]
[WhiteFideId "1723383"]
[BlackFideId "1713825"]
[WhiteElo "2319"]
[BlackElo "1922"]

1. d4 {[%clk 00:15:08]} Nf6 {[%clk 00:15:03]} {[%emt 00:54:27]} 2. c4 {[%clk
00:15:10]} e6 {[%clk 00:14:59]} {[%emt 00:00:11]} 3. g3 {[%clk 00:15:14]}
{[%emt 00:00:02]} Bb4+ {[%clk 00:14:57]} {[%emt 00:00:07]} 4. Bd2 {[%clk
00:15:18]} {[%emt 00:00:02]} Qe7 {[%clk 00:14:59]} {[%emt 00:00:02]} 5. Bg2
{[%clk 00:15:12]} {[%emt 00:00:10]} Nc6 {[%clk 00:15:00]} {[%emt 00:00:04]} 6.
Nf3 {[%clk 00:15:09]} {[%emt 00:00:09]} Bxd2+ {[%clk 00:15:01]} {[%emt
00:00:04]} 7. Nbxd2 {[%clk 00:15:10]} {[%emt 00:00:04]} d6 {[%clk 00:14:51]}
{[%emt 00:00:15]} 8. O-O {[%clk 00:15:11]} {[%emt 00:00:04]} O-O {[%clk
00:14:53]} {[%emt 00:00:03]} 9. Rc1 {[%clk 00:15:14]} {[%emt 00:00:02]} e5
{[%clk 00:14:46]} {[%emt 00:00:12]} 10. d5 {[%clk 00:14:47]} {[%emt 00:00:32]}
Nb8 {[%clk 00:14:47]} {[%emt 00:00:04]} 11. e4 {[%clk 00:14:44]} {[%emt
00:00:07]} a5 {[%clk 00:14:41]} {[%emt 00:00:11]} 12. Nh4 {[%clk 00:14:31]}
{[%emt 00:00:18]} g6 {[%clk 00:13:54]} {[%emt 00:00:52]} 13. Qe2 {[%clk
00:14:29]} {[%emt 00:00:07]} Na6 {[%clk 00:13:23]} {[%emt 00:00:36]} 14. h3
{[%clk 00:14:21]} {[%emt 00:00:14]} Nc5 {[%clk 00:12:57]} {[%emt 00:00:30]} 15.
Qe3 {[%clk 00:14:22]} {[%emt 00:00:04]} Bd7 {[%clk 00:12:20]} {[%emt 00:00:43]}
16. b3 {[%clk 00:14:25]} {[%emt 00:00:02]} Kg7 {[%clk 00:11:43]} {[%emt
00:00:39]} 17. a3 {[%clk 00:14:27]} {[%emt 00:00:06]} h6 {[%clk 00:10:47]}
{[%emt 00:01:01]} 18. b4 {[%clk 00:14:10]} {[%emt 00:00:21]} axb4 {[%clk
00:10:42]} {[%emt 00:00:10]} 19. axb4 {[%clk 00:14:14]} {[%emt 00:00:01]} Na6
{[%clk 00:10:22]} {[%emt 00:00:24]} 20. Qc3 {[%clk 00:14:17]} {[%emt 00:00:02]}
Nh5 {[%clk 00:09:33]} {[%emt 00:00:54]} 21. c5 {[%clk 00:12:34]} {[%emt
00:01:48]} Kh7 {[%clk 00:08:40]} {[%emt 00:00:58]} 22. Nb3 {[%clk 00:09:57]}
{[%emt 00:02:42]} Nf4 {[%clk 00:07:34]} {[%emt 00:01:11]} 23. gxf4 {[%clk
00:08:55]} Qxh4 {[%clk 00:07:36]} {[%emt 00:01:10]} 24. fxe5 {[%clk 00:08:49]}
{[%emt 00:00:12]} dxe5 {[%clk 00:06:41]} {[%emt 00:01:00]} 25. Nd2 {[%clk
00:08:21]} {[%emt 00:00:32]} Bb5 {[%clk 00:06:02]} {[%emt 00:00:43]} 26. Rfe1
{[%clk 00:08:09]} {[%emt 00:00:17]} Rae8 {[%clk 00:05:50]} {[%emt 00:00:17]} 27.
Ra1 {[%clk 00:03:39]} {[%emt 00:04:36]} f5 {[%clk 00:04:32]} {[%emt 00:01:24]}
28. Ra5 {[%clk 00:03:15]} {[%emt 00:00:28]} Bd7 {[%clk 00:03:48]} {[%emt
00:00:49]} 29. c6 {[%clk 00:03:12]} {[%emt 00:00:07]} Bc8 {[%clk 00:03:39]}
{[%emt 00:00:14]} 30. b5 {[%clk 00:03:02]} {[%emt 00:00:15]} b6 {[%clk
00:03:30]} {[%emt 00:00:15]} 31. Rxa6 {[%clk 00:02:49]} {[%emt 00:00:18]} Bxa6
{[%clk 00:03:31]} {[%emt 00:00:04]} 32. bxa6 {[%clk 00:02:53]} {[%emt
00:00:01]} fxe4 {[%clk 00:03:08]} {[%emt 00:00:27]} 33. Nxe4 {[%clk 00:02:49]}
{[%emt 00:00:09]} Ra8 {[%clk 00:03:07]} {[%emt 00:00:07]} 34. Qxe5 {[%clk
00:02:31]} {[%emt 00:00:22]} Rf7 {[%clk 00:02:58]} {[%emt 00:00:14]} 35. Qe6
{[%clk 00:02:05]} {[%emt 00:00:31]} Rg7 {[%clk 00:02:19]} {[%emt 00:00:43]} 36.
Nf6+ {[%clk 00:01:53]} {[%emt 00:00:19]} Kh8 {[%clk 00:02:23]} {[%emt
00:00:01]} 37. Qe8+ {[%clk 00:01:38]} {[%emt 00:00:20]} Rg8 {[%clk 00:01:39]}
{[%emt 00:00:48]} 38. Qf7 {[%clk 00:01:39]} {[%emt 00:00:04]} Rg7 {[%clk
00:01:21]} {[%emt 00:00:24]} 39. Re8+ {[%clk 00:01:42]} {[%emt 00:00:02]} 1-0

[Event "SS Manhem Chess Week 2019 Goteborg Open"]
[Site "Molnlycke kulturhus, Biblioteksgatan 2, Molnlycke, Sweden"]
[Date "2019.08.16"]
[Round "3.12"]
[White "Alharash, Feras"]
[Black "Ziegler, Ari"]
[Result "0-1"]
[TimeControl "15 minutes + 5 seconds per move from move one (Round 1 - 4) / 90 minutes + 30 seconds per move from move one (Round 5 - 8)"]
[BlackTitle "IM"]
[WhiteFideId "7604645"]
[BlackFideId "1700987"]
[WhiteElo "1882"]
[BlackElo "2300"]

1. d4 {[%clk 00:15:04]} g6 {[%clk 00:15:09]} {[%emt 01:01:56]} 2. Nf3 {[%clk
00:15:12]} Bg7 {[%clk 00:15:13]} {[%emt 00:00:01]} 3. c4 {[%clk 00:15:16]}
{[%emt 00:00:01]} Nf6 {[%clk 00:15:15]} {[%emt 00:00:02]} 4. Nc3 {[%clk
00:15:20]} d6 {[%clk 00:15:18]} {[%emt 00:00:04]} 5. e4 {[%clk 00:15:23]}
{[%emt 00:00:01]} O-O {[%clk 00:15:21]} {[%emt 00:00:02]} 6. Be2 {[%clk
00:15:27]} {[%emt 00:00:01]} e5 {[%clk 00:15:25]} {[%emt 00:00:01]} 7. O-O
{[%clk 00:15:30]} {[%emt 00:00:02]} Nc6 {[%clk 00:15:29]} {[%emt 00:00:02]} 8.
d5 {[%clk 00:15:33]} {[%emt 00:00:01]} Ne7 {[%clk 00:15:32]} 9. Qc2 {[%clk
00:15:32]} {[%emt 00:00:07]} Ne8 {[%clk 00:15:26]} {[%emt 00:00:12]} 10. b4
{[%clk 00:15:34]} {[%emt 00:00:03]} a5 {[%clk 00:15:27]} {[%emt 00:00:04]} 11.
Ba3 {[%clk 00:15:33]} {[%emt 00:00:05]} f5 {[%clk 00:15:18]} {[%emt 00:00:13]}
12. exf5 {[%clk 00:15:22]} {[%emt 00:00:16]} gxf5 {[%clk 00:14:59]} {[%emt
00:00:24]} 13. Rad1 {[%clk 00:14:31]} {[%emt 00:00:56]} Ng6 {[%clk 00:14:23]}
{[%emt 00:00:41]} 14. Rfe1 {[%clk 00:14:25]} {[%emt 00:00:11]} b6 {[%clk
00:13:33]} {[%emt 00:00:55]} 15. Nb5 {[%clk 00:13:52]} {[%emt 00:00:39]} Bd7
{[%clk 00:12:48]} {[%emt 00:00:50]} 16. Bf1 {[%clk 00:10:24]} {[%emt 00:03:33]}
Kh8 {[%clk 00:12:33]} {[%emt 00:00:20]} 17. Qd2 {[%clk 00:10:10]} {[%emt
00:00:20]} Qf6 {[%clk 00:11:51]} {[%emt 00:00:46]} 18. Qb2 {[%clk 00:08:27]}
{[%emt 00:01:48]} Rg8 {[%clk 00:11:35]} {[%emt 00:00:20]} 19. Kh1 {[%clk
00:08:31]} {[%emt 00:00:02]} Bh6 {[%clk 00:10:45]} {[%emt 00:00:54]} 20. bxa5
{[%clk 00:08:28]} {[%emt 00:00:09]} Rxa5 {[%clk 00:10:46]} {[%emt 00:00:04]} 21.
Bb4 {[%clk 00:08:31]} {[%emt 00:00:01]} Ra8 {[%clk 00:10:49]} {[%emt 00:00:02]}
22. Bd2 {[%clk 00:08:15]} {[%emt 00:00:22]} Bxd2 {[%clk 00:09:33]} {[%emt
00:01:21]} 23. Qxd2 {[%clk 00:08:10]} {[%emt 00:00:09]} Rg7 {[%clk 00:09:28]}
{[%emt 00:00:10]} 24. Ra1 {[%clk 00:08:04]} {[%emt 00:00:11]} Bxb5 {[%clk
00:07:56]} {[%emt 00:01:38]} 25. cxb5 {[%clk 00:08:08]} {[%emt 00:00:02]} Ra3
{[%clk 00:07:58]} {[%emt 00:00:02]} 26. Re3 {[%clk 00:07:12]} {[%emt 00:01:01]}
Rxe3 {[%clk 00:08:00]} {[%emt 00:00:03]} 27. Qxe3 {[%clk 00:06:56]} {[%emt
00:00:20]} e4 {[%clk 00:08:01]} {[%emt 00:00:04]} 28. Nd4 {[%clk 00:07:00]}
{[%emt 00:00:01]} Ne5 {[%clk 00:08:05]} {[%emt 00:00:02]} 29. Rc1 {[%clk
00:06:08]} {[%emt 00:00:56]} Ng4 {[%clk 00:08:03]} {[%emt 00:00:07]} 30. Qd2
{[%clk 00:04:28]} {[%emt 00:01:44]} Qh4 {[%clk 00:07:58]} {[%emt 00:00:09]} 31.
h3 {[%clk 00:04:25]} {[%emt 00:00:08]} Nxf2+ {[%clk 00:07:59]} {[%emt
00:00:04]} 32. Kg1 {[%clk 00:02:36]} {[%emt 00:01:54]} Nxh3+ {[%clk 00:07:59]}
{[%emt 00:00:05]} 0-1

[Event "SS Manhem Chess Week 2019 Goteborg Open"]
[Site "Molnlycke kulturhus, Biblioteksgatan 2, Molnlycke, Sweden"]
[Date "2019.08.16"]
[Round "3.13"]
[White "Alfven, Jorgen"]
[Black "Pham, Bich Ngoc"]
[Result "0-1"]
[TimeControl "15 minutes + 5 seconds per move from move one (Round 1 - 4) / 90 minutes + 30 seconds per move from move one (Round 5 - 8)"]
[BlackTitle "WIM"]
[WhiteFideId "1715950"]
[BlackFideId "12401285"]
[WhiteElo "1871"]
[BlackElo "2176"]

1. d4 {[%clk 01:30:57]} f5 {[%clk 01:30:59]} 2. Nc3 {[%clk 00:15:09]} {[%emt
30:29:42]} Nf6 {[%clk 00:15:13]} {[%emt 00:00:02]} 3. Bg5 {[%clk 00:15:08]}
{[%emt 00:00:05]} e6 {[%clk 00:14:38]} {[%emt 00:00:41]} 4. e4 {[%clk
00:15:04]} {[%emt 00:00:09]} Be7 {[%clk 00:14:36]} {[%emt 00:00:06]} 5. exf5
{[%clk 00:14:39]} {[%emt 00:00:30]} exf5 {[%clk 00:14:39]} {[%emt 00:00:03]} 6.
Bd3 {[%clk 00:14:02]} {[%emt 00:00:42]} d6 {[%clk 00:13:51]} {[%emt 00:00:52]}
7. Qe2 {[%clk 00:13:35]} {[%emt 00:00:33]} O-O {[%clk 00:13:42]} {[%emt
00:00:14]} 8. Nf3 {[%clk 00:13:24]} {[%emt 00:00:15]} h6 {[%clk 00:13:06]}
{[%emt 00:00:42]} 9. Bf4 {[%clk 00:13:06]} {[%emt 00:00:22]} Re8 {[%clk
00:12:51]} {[%emt 00:00:20]} 10. O-O-O {[%clk 00:12:51]} {[%emt 00:00:20]} Bf8
{[%clk 00:12:53]} {[%emt 00:00:04]} 11. Qd2 {[%clk 00:12:41]} {[%emt 00:00:15]}
Ne4 {[%clk 00:12:56]} {[%emt 00:00:02]} 12. Bc4+ {[%clk 00:11:41]} {[%emt
00:01:05]} Be6 {[%clk 00:11:58]} {[%emt 00:01:03]} 13. Bxe6+ {[%clk 00:11:14]}
{[%emt 00:00:32]} Rxe6 {[%clk 00:12:01]} {[%emt 00:00:02]} 14. Qe1 {[%clk
00:09:28]} {[%emt 00:01:50]} Qe8 {[%clk 00:11:34]} {[%emt 00:00:32]} 15. Nd5
{[%emt 00:01:12]} Na6 {[%clk 00:11:24]} {[%emt 00:00:13]} 16. Be3 {[%clk
00:08:08]} {[%emt 00:00:20]} Qa4 {[%clk 00:10:39]} {[%emt 00:00:50]} 17. Kb1
{[%clk 00:07:43]} {[%emt 00:00:30]} Qc4 {[%clk 00:09:06]} {[%emt 00:01:38]} 18.
Nf4 {[%clk 00:07:19]} {[%emt 00:00:30]} Nb4 {[%clk 00:08:54]} {[%emt 00:00:17]}
19. Qxb4 {[%clk 00:04:44]} {[%emt 00:02:40]} Qxb4 {[%clk 00:08:56]} {[%emt
00:00:03]} 20. Nxe6 {[%clk 00:04:47]} Nc3+ {[%clk 00:08:57]} {[%emt 00:00:04]}
21. Ka1 {[%clk 00:04:40]} {[%emt 00:00:12]} Nxd1 {[%clk 00:08:59]} {[%emt
00:00:03]} 22. Rxd1 {[%clk 00:04:44]} Qc4 {[%clk 00:08:51]} {[%emt 00:00:13]}
23. d5 {[%clk 00:04:21]} {[%emt 00:00:28]} Qxc2 {[%clk 00:08:32]} {[%emt
00:00:24]} 24. Rc1 {[%clk 00:04:25]} {[%emt 00:00:01]} Qe4 {[%clk 00:08:31]}
{[%emt 00:00:02]} 25. Nxc7 {[%clk 00:04:07]} {[%emt 00:00:27]} Rc8 {[%clk
00:08:27]} {[%emt 00:00:08]} 26. Bxa7 {[%clk 00:04:03]} {[%emt 00:00:10]} Qxd5
{[%clk 00:08:15]} {[%emt 00:00:17]} 27. a3 {[%clk 00:03:41]} {[%emt 00:00:27]}
Qa5 {[%clk 00:08:09]} {[%emt 00:00:10]} 0-1